Cogmind - Beta 10.2 @@@ ROGUE MODE // 2021.08.04 @ 15:00:42 Player: thingamajigger Result: Destroyed by as-14673 with Assembled Blade Performance ------------- Evolutions (0) 0 Regions Visited (2) 400 Robots Destroyed (4) 20 Value Destroyed (88) 88 Prototype IDs (0) 0 Alien Tech Used (0) 0 Bonus (0) 0 TOTAL SCORE: 508 Bonus ------- None Cogmind --------- Core Integrity 0/250 Matter 296/300 Energy 100/100 System Corruption 2% Temperature Cool (0) Movement Rolling (110) Ox1 Location -10/Mines Parts ------- > --- POWER (1) -------- (None) > --- PROPULSION (2) --- Compact Wheel Compact Wheel > --- UTILITY (2) ------ Large Storage Unit Large Storage Unit > --- WEAPON (2) ------- Light Assault Rifle > --- INVENTORY (16) --- Light Ion Engine Improved Heat Sink Peak State ------------ > --- POWER ------------ Light Ion Engine > --- PROPULSION ------- Light Treads Light Treads > --- UTILITY ---------- Small Storage Unit Large Storage Unit > --- WEAPON ----------- Light Assault Rifle Light Assault Rifle > --- INVENTORY -------- Light Ion Engine EM Pulse Gun EM Pulse Gun Medium Laser [Rating: 7] Favorites ----------- Power Light Ion Engine Engine Light Ion Engine Propulsion Light Treads Treads Light Treads Wheel Compact Wheel Utility Large Storage Unit Storage Large Storage Unit Weapon Light Assault Rifle Energy Gun EM Pulse Gun Ballistic Gun Light Assault Rifle Build | -11 -10 -10 ------- Run | Scr Mat Min Slots Evolved . | . . . Power . | . . . Propulsion . | . . . Utility . | . . . Weapon . | . . . Parts Attached 17 | 6 2 9 Power 2 | 1 . 1 Engine 2 | 1 . 1 Core . | . . . Reactor . | . . . Propulsion 5 | 2 . 3 Treads 2 | 2 . . Leg . | . . . Wheel 3 | . . 3 Hover . | . . . Flight . | . . . Utility 3 | 1 2 . Device . | . . . Storage 3 | 1 2 . Processor . | . . . Hackware . | . . . Protection . | . . . Artifact . | . . . Weapon 7 | 2 . 5 Energy Gun 3 | . . 3 Energy Cannon . | . . . Ballistic Gun 4 | 2 . 2 Ballistic Cannon . | . . . Launcher . | . . . Special Weapon . | . . . Impact Weapon . | . . . Slashing Weapon . | . . . Piercing Weapon . | . . . Special Melee Weapon . | . . . Unidentified Prototypes . | . . . Parts Lost 8 | . . 8 Power 2 | . . 2 Propulsion 2 | . . 2 Utility . | . . . Weapon 4 | . . 4 Highest Loss Streak 2 | . . 2 Average Slot Usage (%) 92 | . 85 94 Engine 13 | . 14 13 Treads 23 | . 28 21 Wheel 1 | . . 2 Storage 24 | . 14 28 Energy Gun 15 | . . 21 Ballistic Gun 11 | . 28 6 Naked Turns . | . . . Heaviest Build 39 | 9 37 39 Greatest Support 40 | 40 40 40 Greatest Overweight (x) 2 | 1 . 2 Average Overweight (x) . | . . . Largest Inventory Capacity 16 | 6 16 16 Average Capacity 13 | 5 6 16 Most Carried 5 | 1 5 5 Average Carried 3 | . 2 3 Final Capacity 16 | 6 16 16 Final Carried 4 | 1 4 2 Class Distribution -------------------- 100% | Mutant Dominant Class ---------------- Mutant | -10/Materials Mutant | -10/Mines Resources | -11 -10 -10 ----------- Run | Scr Mat Min Matter Collected 426 | 266 . 160 Remotely . | . . . Salvage Created 353 | 100 . 253 Parts 6 | 3 . 3 Haulers Intercepted . | . . . Recyclers Shooed . | . . . Parts Field Recycled . | . . . Retrieved Matter . | . . . Parts Self-Destructed . | . . . Prevented . | . . . Kills | -11 -10 -10 ------- Run | Scr Mat Min Combat Hostiles Destroyed 11 | . . 11 Guns 11 | . . 11 Classes Destroyed 4 | 1 . 3 Worker 1 | . . 1 Recycler 1 | 1 . . Grunt 2 | . . 2 Assembled 9 | . . 9 Best Kill Streak 4 | 1 . 4 Combat Bots Only 3 | . . 3 Max Kills in Single Turn 1 | 1 . 1 Gunslinging . | . . . Exploded . | . . . Melee . | . . . Uniques/NPCs Destroyed . | . . . Combat | -11 -10 -10 -------- Run | Scr Mat Min Damage Taken 1052 | . . 1052 Core 267 | . . 267 Absorbed by Shields . | . . . Core Remaining (%) 100 | 100 . . Volleys Fired 59 | 3 . 56 Largest 2 | 2 . 2 Hottest 90 | 40 . 90 Shots Fired 114 | 6 . 108 Gun 114 | 6 . 108 Cannon . | . . . Launcher . | . . . Special . | . . . Kinetic 65 | 6 . 59 Thermal 7 | . . 7 Explosive . | . . . Electromagnetic 42 | . . 42 Robot Hit Streak 9 | 2 . 9 Robot Miss Streak 4 | 1 . 4 Penetration Max . | . . . Secondary Targets 1 | . . 1 Max Gunslinging Chain 1 | . . 1 Shots Hit Robots 64 | 4 . 60 Core Hits 28 | 3 . 25 Critical Hits . | . . . Critical Kills . | . . . Critical Parts Destroyed . | . . . Melee Attacks . | . . . Impact . | . . . Slashing . | . . . Piercing . | . . . Sneak Attacks . | . . . Combat Hostiles . | . . . Follow-up Attacks . | . . . Damage Inflicted 540 | 42 . 498 Guns 540 | 42 . 498 Cannons . | . . . Explosions . | . . . Melee . | . . . Ramming . | . . . Kinetic 294 | 42 . 252 Thermal 26 | . . 26 Explosive . | . . . Electromagnetic 220 | . . 220 Impact . | . . . Slashing . | . . . Piercing . | . . . Highest Corruption 2 | . . 2 Average Corruption 2 | . . 2 Corruption Purged . | . . . Effects 1 | . . 1 Data Loss (minor) 1 | . . 1 Overload Shots . | . . . Overflow Damage . | . . . Projectiles . | . . . Explosions . | . . . Melee . | . . . Knockbacks . | . . . Impact . | . . . Kinetic . | . . . Secondary . | . . . Self-Inflicted Damage . | . . . Shots . | . . . Rammed . | . . . Targets Rammed . | . . . Kicked . | . . . Crushed . | . . . Highest Temperature 120 | . . 120 Average Temperature 28 | . . 28 Received Heat Transfer 179 | . . 179 Siege Activations . | . . . Robots Corrupted . | . . . Combat Hostiles . | . . . Parts Fried . | . . . Impact Corruptions . | . . . Robots Melted . | . . . Combat Hostiles . | . . . Parts Melted . | . . . Heat Transferred 74 | . . 74 Parts Sabotaged . | . . . Parts Stolen . | . . . Parts Stripped . | . . . Power Chain Reactions . | . . . Missiles Intercepted . | . . . Alert | -11 -10 -10 ------- Run | Scr Mat Min Peak Influence 82 | 5 70 82 Initial 27 | . 3 27 Average 31 | 1 42 30 Maximum Alert Level . | . . . Low Security (%) 100 | 100 100 100 Level 1 . | . . . Level 2 . | . . . Level 3 . | . . . Level 4 . | . . . Level 5 . | . . . High Security . | . . . Max Security . | . . . Squads Dispatched 1 | . 1 . Investigation 1 | . 1 . Extermination . | . . . Reinforcement . | . . . Assault . | . . . Garrison . | . . . Intercept . | . . . Construction Impeded . | . . . Haulers Reinforced . | . . . Stealth | -11 -10 -10 --------- Run | Scr Mat Min Distress Signals 1 | . . 1 Communications Jammed . | . . . Distress Signals . | . . . Times Spotted 16 | . 2 14 Peak Tracking Total 3 | . 1 3 Tactical Retreats 2 | . . 2 Traps | -11 -10 -10 ------- Run | Scr Mat Min Traps Triggered 1 | . 1 . Indirectly . | . . . Trap Hack Attempts . | . . . Triggered . | . . . Disarmed . | . . . Reprogrammed . | . . . Reused . | . . . Traps Extracted . | . . . Installed . | . . . Triggered . | . . . Machines | -11 -10 -10 ---------- Run | Scr Mat Min Machines Disabled . | . . . Max in Single Turn . | . . . Machines Sabotaged . | . . . Garrisons Compromised . | . . . Overloaded Fab Kills . | . . . Fab Network Shutdowns . | . . . Hacking | -11 -10 -10 --------- Run | Scr Mat Min Machines Accessed 5 | . 5 . Terminals 5 | . 5 . Fabricators . | . . . Repair Stations . | . . . Recycling Units . | . . . Scanalyzers . | . . . Garrison Access . | . . . Total Hacks 10 | . 10 . Successful 4 | . 4 . Failed 6 | . 6 . Catastrophic 1 | . 1 . Database Lockouts . | . . . Manual 9 | . 9 . Terminals 10 | . 10 . Fabricators . | . . . Repair Stations . | . . . Recycling Units . | . . . Scanalyzers . | . . . Garrison Access . | . . . Terminal Hacks 1 | . 1 . Robot Analysis 1 | . 1 . Fabricator Hacks . | . . . Repair Station Hacks . | . . . Recycling Unit Hacks . | . . . Scanalyzer . | . . . Garrison Access Hacks . | . . . Unauthorized Hacks 3 | . 3 . Terminals 3 | . 3 . Track 1 | . 1 . Botnet 1 | . 1 . Operators 1 | . 1 . Fabricators . | . . . Repair Stations . | . . . Recycling Units . | . . . Scanalyzers . | . . . Garrison Access . | . . . Data Cores Recovered . | . . . Used . | . . . Hacking Detections 5 | . 5 . Full Trace Events . | . . . Feedback Events . | . . . Feedback Blocked . | . . . Robot Schematics Acquired . | . . . Robots Built . | . . . Matter . | . . . Time . | . . . Total Robot Build Rating . | . . . Part Schematics Acquired . | . . . Parts Built . | . . . Matter . | . . . Time . | . . . Total Part Build Rating . | . . . Parts Repaired . | . . . Time . | . . . Parts Recycled . | . . . Recycled Matter . | . . . Retrieved Matter . | . . . Retrieved Components . | . . . Parts Scanalyzed . | . . . Part Schematics Acquired . | . . . Parts Damaged . | . . . Bothacking | -11 -10 -10 ------------ Run | Scr Mat Min Used RIF Installer . | . . . Robots Hacked . | . . . Non-combat . | . . . Combat . | . . . Robot Hacks Applied . | . . . Relay Couplers Released . | . . . Robots Rewired . | . . . Allies Hacked . | . . . Hacks Repelled . | . . . Allies | -11 -10 -10 -------- Run | Scr Mat Min Total Allies . | . . . Largest Group . | . . . Highest-Rated Group . | . . . Highest-Rated Ally . | . . . Total Orders . | . . . Ally Attacks . | . . . Total Damage . | . . . Kills . | . . . Allies Corrupted . | . . . Allies Melted . | . . . Intel | -11 -10 -10 ------- Run | Scr Mat Min Robot Analysis Total 1 | . 1 . Derelict Logs Recovered 1 | . . 1 Drone Launches . | . . . Drone Recoveries . | . . . Exploration | -11 -10 -10 ------------- Run | Scr Mat Min Turns Passed 1327 | 85 307 935 Spaces Moved 536 | 50 173 313 Core 13 | 13 . . Treads 471 | 37 173 261 Legs . | . . . Wheels 52 | . . 52 Hover . | . . . Flight . | . . . Fastest Speed 50 | 50 160 100 Average Speed 153 | 137 160 152 Slowest Speed 180 | 160 160 180 Overloaded Moves . | . . . Propulsion Burnouts . | . . . Robots Hopped . | . . . Cave-ins Triggered . | . . . Exploration Rate (%) 28 | 4 36 44 Regions Visited 2 Branch Regions 1 Pre-discovered Areas . | . . . Known Exits Taken . | . . . Unknown Exits Taken 2 | 1 1 . Scrap Searched . | . . . Spaces Dug . | . . . Terrain Destroyed . | . . . Melee . | . . . Projectile . | . . . AOE . | . . . Terrain Rammed . | . . . Walls Destroyed . | . . . Machines Disabled . | . . . Actions | -11 -10 -10 --------- Run | Scr Mat Min Total 933 | 59 203 671 Wait 316 | . 25 291 Move 534 | 49 172 313 Hop . | . . . Pick Up 5 | 1 3 1 Fast Attach 11 | 6 1 4 Attach 3 | . . 3 Detach . | . . . Swap 3 | . 1 2 Drop 2 | . 1 1 Fire 59 | 3 . 56 Melee . | . . . Ram . | . . . Kick . | . . . Crush . | . . . Escape Stasis . | . . . Rewire . | . . . Trap . | . . . Miscellaneous . | . . . Route ------- -11/Scrapyard -10/Materials -10/Mines (discovered 1 exit: [*Mat]) History --------- Turn | Location | Event 19 | -11/Scrapyard | Discovered new exit (range 15) 86 | -11/Scrapyard | Entered Materials 315 | -10/Materials | Build established: Mutant 361 | -10/Materials | Discovered new exit (range 7) 393 | -10/Materials | Entered Mines 403 | -10/Mines | Met a Derelict bent on vengeance 443 | -10/Mines | Discovered new exit (range 14) 488 | -10/Mines | Assembled infested the area 502 | -10/Mines | Learned location of 1 exit from Materials 1212 | -10/Mines | Core integrity fell below 50% 1319 | -10/Mines | Core integrity fell below 20% 1328 | -10/Mines | Destroyed by as-14673 with Assembled Blade Last Messages --------------- 01240_ Dropped Lgt. Treads. 01241_ Acquired Wheel. 01243_ Acquired 52 matter. 01245_ K-01 Serf collects debris. 01264_ Wheel destroyed. 01264_ System corrupted by crushing effect (+2). 01272_ as-22907 destroyed. 01273_ Acquired 3 matter. 01278_ K-01 Serf collects debris. 01280_ Acquired Com. Wheel. 01281_ Acquired 8 matter. 01282_ Acquired 2 matter. 01284_ System corrupted: Component data lost. 01288_ K-01 Serf collects debris. 01297_ U-05 Engineer lays Concrete. 01298_ K-01 Serf collects debris. 01298_ U-05 Engineer lays Concrete. 01300_ U-05 Engineer builds a Wall. 01320_ EM Pulse Gun destroyed. 01320_ Lgt. Ion Engine destroyed. Map ----- +----------------------------------------------------+ | | | | | | | | | | | | | | | | | | | | | | | ?????????????????????????????????????????????????? | | ?????????????????????????????????????????????????? | | ???????????????????????????????????????????####??? | | ??????????????????????????????????????????? ##?? | | ??????????????????????????????????????????? ##? | | ??????????????????????????????????????????? #? | | ???????????????????????????????????????????# #? | | ???????????????????????????????????????????# #? | | ???????????????????????????????????????????# #?? | | ??????????????????????######???????????????# #??? | | ??????????????????????# ##??????????##### #??? | | ??????????????????????# #??????????# % #??? | | ??????????????????????# < #####??????# %% #??? | | ?????????????????????## !#??????# #####??? | | ?????????????????????# @ =*!#??????# #??????? | | ??????????%%*%######## ra ##%#?????## ##?????? | | ?????????*%*% = ## ####### ##????? | | ?????????== !%* ### #????? | | ?????????! % #########%=##?######## """ ##???? | | ?????????? *= ??????????#*!#?????????# """ ##??? | | ????????????????????????# #?????????# """ ##?? | | ????????????????????????# =#?????????## #?? | | ???????????????????????##=%######?????## #?? | | ???????????????????????# %**## ##?????## ##?? | | ???????????????????????# ! ########* #??? | | ???????????????????????## % ##!= |%! #??? | | ????????????????????????## % =|#=!!#=% ##??? | | ?????????????????????????## *!%%!%=!!#! ##???? | | ??????????????????????????# =%=!*%!%%!=*##????? | | ?????????????????????????# ##*%!=!!|%!!#????? | | ????????????????????????# !=#####%%%#*## #????? | | ?????????????????????% !%#???#=#%#%#? ###### | | ????????????????????#!#### |%=#???##### #?###!!## | | ?????????????????????????# ==#???????#%####**!*% | | ????????????????????????# !=???????#% %%!%%%! | | ????????????????????????# ???????# #####%*!= | | ????????????????????????## ???????#%#???##%!= | | ?????????????????????????## ???????# ##???#### | | ??????????????????????????### ??????# #??????? | +----------------------------------------------------+ Best States ------------- Heat Dissipation 25 Energy Generation 10 Energy Capacity 125 Matter Stores 300 Matter Capacity 300 Sight Range 16 Terrain Scan Density 10 Evasion (%) 40 Recoil Reduction 2 Item Schematics ----------------- None Robot Schematics ------------------ None Fabricated ------------ Nothing Alien Tech Used ----------------- None Achievements -------------- None Challenges ------------ None Game ------ Seed DynamicMyomerDetonator Manual? 0 Play Time 00:09:02 Cumulative 90.4 hours Start 2021.08.04 @ 14:55:16 End 2021.08.04 @ 15:00:42 Sessions 1 Manual Loads 0 Difficulty Rogue Special Mode None Game No. 154 Rogue 142 Adventurer 4 Explorer 8 Win Type - Total 6 Types 5/0/0/1/0/0/0/0/0 Lore% 60 Gallery% 77 Achievement% 56 Wizard Run 0 Options --------- ASCII 0 Keyboard 1 Movement Numpad Keybinds 0 Fullscreen 1 Font 18/SmallcapsGlow Map View 76x50 Tactical HUD 1 Map Filters NONE Filters NONE Steam 1 RUN: 945055f9-f2cf-4207-a971-b9d98616a156